fUSD/lending_fUSD_20260315
["ID","MTS","AMOUNT","RATE_DAILY","PERIOD"]
[408388487,1773543033368,-9999.99,0.00016922,2]
[408388488,1773543033377,-2300.09,0.00016922,2]
[408388489,1773543033386,-510.0,0.00017,2]
[408388490,1773543033395,-268.0,0.00017256,2]
[408388491,1773543033405,-268.0,0.00017393,2]
[408388492,1773543033414,-167.91,0.00017423,2]
[408388493,1773543033423,-167.91,0.00017423,2]
[408388494,1773543033432,-1500.0,0.00017468,2]
[408388495,1773543033441,-268.0,0.0001753,2]
[408388496,1773543033450,-308.15210792,0.00017595,2]
[408388497,1773543033459,-250.0,0.00017607,2]
[408388498,1773543033468,-268.0,0.00017667,2]
[408388499,1773543033478,-3292.0,0.00017736,2]
[408388500,1773543033487,-268.0,0.00017804,2]
[408388501,1773543033496,-500.0,0.00017826,2]
[408388502,1773543033506,-200.0,0.00017999,2]
[408388503,1773543033515,-2000.0,0.00018016,2]
[408388504,1773543033524,-363.68,0.00018194,2]
[408388505,1773543033533,-487.57,0.00018229,2]
[408388506,1773543033543,-7108.49,0.00018356,2]
[408388507,1773543033552,-495.54,0.00018493,2]
[408388508,1773543033561,-296.75,0.00018503,2]
[408388509,1773543033570,-1500.0,0.00018551,2]
[408388510,1773543033579,-1505.48389819,0.00018564,2]
[408388511,1773543033588,-500.0,0.000186,2]
[408388512,1773543033598,-500.0,0.000186,2]
[408388513,1773543033607,-500.0,0.000186,2]
[408388514,1773543033616,-500.0,0.000186,2]
[408388515,1773543033626,-500.0,0.000186,2]
[408388516,1773543033635,-680.87302549,0.000186,2]
[408388517,1773543033644,-756.3491332,0.000186,2]
[408388518,1773543033654,-500.0,0.000186,2]
[408388519,1773543033663,-500.0,0.000186,2]
[408388520,1773543033672,-557.98545235,0.000186,2]
[408388521,1773543033681,-503.92383992,0.000186,2]
[408388522,1773543033691,-500.0,0.000186,2]
[408388523,1773543033700,-500.0,0.000186,2]
[408388524,1773543033709,-500.0,0.000186,2]
[408388525,1773543033718,-500.0,0.000186,2]
[408388526,1773543033727,-500.0,0.000186,2]
[408388527,1773543033736,-500.0,0.000186,2]
[408388528,1773543033745,-500.0,0.000186,2]
[408388529,1773543033754,-500.0,0.000186,2]
[408388530,1773543033763,-500.0,0.000186,2]
[408388531,1773543033772,-500.0,0.000186,2]
[408388532,1773543033781,-500.0,0.000186,2]
[408388533,1773543033790,-724.91196993,0.000186,2]
[408388534,1773543033799,-500.0,0.000186,2]
[408388535,1773543033808,-944.95239173,0.000186,2]
[408388536,1773543033817,-500.0,0.000186,2]
[408388537,1773543033826,-500.0,0.000186,2]
[408388538,1773543033835,-500.0,0.000186,2]
[408388539,1773543033844,-500.0,0.000186,2]
[408388540,1773543033853,-693.82544422,0.000186,2]
[408388541,1773543033862,-500.0,0.000186,2]
[408388542,1773543033873,-500.0,0.000186,2]
[408388543,1773543033886,-981.67137029,0.000186,2]
[408388544,1773543033895,-500.0,0.000186,2]
[408388545,1773543033905,-500.0,0.000186,2]
[408388546,1773543033915,-500.0,0.000186,2]
[408388547,1773543033924,-500.0,0.000186,2]
[408388548,1773543033933,-500.0,0.000186,2]
[408388549,1773543033943,-500.0,0.000186,2]
[408388550,1773543033953,-500.0,0.000186,2]
[408388551,1773543033962,-500.0,0.000186,2]
[408388552,1773543033972,-994.96762556,0.000186,2]
[408388553,1773543033981,-500.0,0.000186,2]
[408388554,1773543033990,-782.64417167,0.000186,2]
[408388555,1773543034000,-500.0,0.000186,2]
[408388556,1773543034010,-751.37105469,0.000186,2]
[408388557,1773543034019,-500.0,0.000186,2]
[408388558,1773543034028,-500.0,0.000186,2]
[408388559,1773543034037,-500.0,0.000186,2]
[408388560,1773543034046,-500.0,0.000186,2]
[408388561,1773543034056,-500.0,0.000186,2]
[408388562,1773543034065,-500.0,0.000186,2]
[408388563,1773543034074,-500.0,0.000186,2]
[408388564,1773543034083,-500.0,0.000186,2]
[408388565,1773543034092,-500.0,0.000186,2]
[408388566,1773543034102,-500.0,0.000186,2]
[408388567,1773543034111,-970.78663731,0.000186,2]
[408388568,1773543034121,-500.0,0.000186,2]
[408388569,1773543034130,-500.0,0.000186,2]
[408388570,1773543034139,-500.0,0.000186,2]
[408388571,1773543034149,-500.0,0.000186,2]
[408388572,1773543034158,-500.0,0.000186,2]
[408388573,1773543034167,-500.0,0.000186,2]
[408388574,1773543034177,-943.06664566,0.000186,2]
[408388575,1773543034187,-500.0,0.000186,2]
[408388576,1773543034196,-500.0,0.000186,2]
[408388577,1773543034206,-500.0,0.000186,2]
[408388578,1773543034215,-500.0,0.000186,2]
[408388579,1773543034225,-11597.43387646,0.00018643,2]
[408388580,1773543034234,-163.61458647,0.00018767,2]
[408388581,1773543034243,-9883.67278859,0.00018767,2]
[408388582,1773543034254,-3005.59307089,0.0001878,2]
[408388583,1773543034263,-1500.0,0.000188,6]
[408388584,1773543034272,-290317.01321585,0.00018867,2]
[408388585,1773543034286,-83266.85886511,0.00018867,2]
[408388586,1773543034297,-84125.06239067,0.00018867,2]
[408388587,1773543034308,-128521.59470398,0.00018867,2]
[408388588,1773543034320,-263.05324462,0.00018867,2]
[408388589,1773543034335,-2076.57022244,0.00018867,2]
[408388593,1773543038137,-150.0,0.000159,2]
[408388594,1773543038147,-566.5785218,0.00018867,2]
[408388618,1773543040445,-828835.36773553,0.00018867,2]
[408388619,1773543040456,-150.0,0.00018867,2]
[408388620,1773543040466,-150.0,0.00018867,2]
[408388621,1773543040477,-150.0,0.00018867,2]
[408388622,1773543040487,-268.59,0.000189,2]
[408388623,1773543040500,-1900.0,0.000189,6]
[408388624,1773543040510,-6650.0720701,0.00018932,2]
[408388625,1773543040520,-318976.2591264,0.00018959,2]
[408388626,1773543040532,-422.7,0.00018959,2]
[408388629,1773543043219,-1000.0008031,0.00018959,2]
[408388633,1773543045999,-316.95927056,0.00018959,2]
[408388634,1773543046012,-39202.68179746,0.00018959,2]
[408388638,1773543091136,-1000.0,0.00013327,2]
[408388639,1773543127763,5000.01,7.945e-05,2]
[408388640,1773543164823,500.0,0.00013227,2]
[408388641,1773543241325,338.0,0.00011385,2]
[408388642,1773543242044,338.0,0.00011875,2]
[408388643,1773543242762,338.41645489,0.00012469,2]
[408388644,1773543327127,240.1256,0.00013227,2]
[408388654,1773543594601,1245.45794511,0.0001199,2]
[408388655,1773543594636,10000.01,0.0001199,2]
[408388656,1773543594660,8754.55205489,0.0001199,2]
[408388657,1773543748596,1970.29540818,0.0001,2]
[408388658,1773543751692,269.74058762,0.000107,2]
[408388664,1773543757649,7759.9740042,9.5e-05,3]
[408388665,1773543757670,10000.01,9.5e-05,3]
[408388666,1773543757692,10000.01,9.5e-05,3]
[408388667,1773543757713,10000.01,9.5e-05,3]
[408388668,1773543757735,10000.01,9.5e-05,3]
[408388669,1773543757756,10000.01,9.5e-05,3]
[408388670,1773543757779,10000.01,9.5e-05,3]
[408388671,1773543757801,10000.01,9.5e-05,3]
[408388672,1773543757827,10000.01,9.5e-05,3]
[408388673,1773543757848,10000.01,9.5e-05,3]
[408388674,1773543757876,2677.41579408,9.5e-05,3]
[408388675,1773543758357,12700.81991089,0.0001,2]
[408388676,1773544043841,-456.47589553,0.00013698,2]
[408388677,1773544068113,1539.73,7.521e-05,2]
[408388678,1773544068516,1539.73,7.917e-05,2]
[408388679,1773544068826,1539.73,8.313e-05,2]
[408388680,1773544068924,1539.73,8.708e-05,2]
[408388681,1773544069280,1539.73,9.104e-05,2]
[408388682,1773544069469,1539.73,9.5e-05,2]
[408388683,1773544069692,761.63,9.896e-05,2]
[408388684,1773544069714,778.1,9.896e-05,2]
[408388685,1773544069904,1539.73,0.00010292,2]
[408388686,1773544070102,1539.73,0.00010688,2]
[408388687,1773544070306,1539.73,0.00011083,2]
[408388688,1773544070503,1539.73,0.00011479,2]
[408388689,1773544070697,1539.73,0.00011875,2]
[408388690,1773544070933,1523.26,0.00012271,2]
[408388691,1773544070959,16.47,0.00012271,2]
[408388692,1773544071145,1539.73,0.00012667,2]
[408388693,1773544071368,1539.73,0.00013063,2]
[408388705,1773544232157,-261.0,0.00013458,2]
[408388708,1773544232166,-146.0,0.00013458,2]
[408388710,1773544232181,-295.99999997,0.00013458,2]
[408388711,1773544232211,-1097.73000003,0.00013458,2]
[408388712,1773544232221,-250.0,0.00013578,2]
[408388713,1773544232230,-279.539355,0.00013621,2]
[408388714,1773544232241,-43.52410447,0.00013698,2]
[408388715,1773544232254,-250.0,0.000137,2]
[408388716,1773544232263,-600.0,0.00013733,2]
[408388717,1773544232273,-300.0,0.00013769,2]
[408388718,1773544232282,-1539.73,0.00013854,2]
[408388719,1773544232293,-300.0,0.00014016,2]
[408388720,1773544232302,-300.0,0.00014016,2]
[408388721,1773544232312,-1539.73,0.0001425,2]
[408388722,1773544232323,-1200.0,0.00014336,2]
[408388723,1773544232333,-300.0,0.00014337,2]
[408388724,1773544232342,-300.0,0.00014337,2]
[408388725,1773544232351,-300.0,0.00014337,2]
[408388726,1773544232360,-300.0,0.00014337,2]
[408388727,1773544232369,-2515.47,0.00014338,2]
[408388729,1773544232379,-4595.31480627,0.00014356,2]
[408388731,1773544232389,-366.423305,0.00014535,7]
[408388733,1773544232398,-316.0,0.0001459,2]
[408388735,1773544232409,-1508.7380282,0.00014624,2]
[408388737,1773544232419,-1539.73,0.00014646,2]
[408388739,1773544232428,-10000.0,0.00014769,2]
[408388741,1773544232438,-1905.14,0.00014801,2]
[408388742,1773544232447,-250.0,0.00014804,2]
[408388744,1773544232457,-600.0,0.00014804,2]
[408388746,1773544232466,-500.0,0.00014804,2]
[408388748,1773544232478,-367.59075052,0.00014804,2]
[408388749,1773544232487,-2562.43444681,0.00014804,2]
[408388750,1773544232496,-600.0,0.00014804,2]
[408388751,1773544232507,-5000.0,0.00014804,2]
[408388752,1773544232516,-143985.7236,0.00014968,2]
[408388753,1773544232527,-150.0,0.00014999,2]
[408388754,1773544232537,-250.0,0.00015,2]
[408388755,1773544232546,-637.16413867,0.00015,2]
[408388756,1773544232555,-3179.30155397,0.00015,14]
[408388757,1773544232565,-29514.51271304,0.00015,7]
[408388758,1773544232574,-1539.73,0.00015042,2]
[408388759,1773544232583,-300.0,0.00015068,2]
[408388760,1773544232592,-300.0,0.00015068,2]
[408388761,1773544232601,-2841.40405955,0.00015068,2]
[408388762,1773544232613,-600.0,0.00015068,2]
[408388763,1773544232623,-257.8972833,0.00015068,2]
[408388764,1773544232632,-5117.86328773,0.00015068,2]
[408388765,1773544232641,-600.0,0.00015068,2]
[408388766,1773544232651,-500.0,0.00015068,2]
[408388767,1773544232660,-150.0,0.00015089,2]
[408388768,1773544232670,-200.0,0.00015186,2]
[408388769,1773544232679,-1517.64,0.000153,2]
[408388770,1773544232689,-511.28109922,0.000154,2]
[408388771,1773544232698,-1947.3742,0.00015425,2]
[408388772,1773544232707,-3240.0,0.00015442,2]
[408388773,1773544232717,-308.08300259,0.00015451,2]
[408388774,1773544232726,-500.0,0.00015702,2]
[408388775,1773544232737,-420.0,0.00015702,2]
[408388776,1773544232749,-420.0,0.00015702,2]
[408388777,1773544232759,-302.0,0.00015702,2]
[408388778,1773544232769,-1680.0,0.0001577,2]
[408388779,1773544232780,-150.0,0.000159,2]
[408388780,1773544232790,-150.0,0.000159,2]
[408388781,1773544232809,-150.0,0.000159,2]
[408388782,1773544232819,-500.0,0.00015976,2]
[408388783,1773544232829,-225.0,0.00016124,2]
[408388784,1773544232839,-292.35906323,0.0001613,2]
[408388785,1773544232849,-5000.00591988,0.000162,5]
[408388786,1773544232858,-500.0,0.0001625,2]
[408388787,1773544232868,-165.52,0.0001653,2]
[408388788,1773544232878,-500.0,0.0001663,2]
[408388789,1773544232888,-166.71,0.00016712,2]
[408388790,1773544232898,-160.0,0.00016872,2]
[408388791,1773544232907,-500.0,0.000169,6]
[408388792,1773544232917,-2500.0,0.000169,2]
[408388793,1773544232926,-933.0832,0.000169,2]
[408388794,1773544232936,-4825.00543238,0.000169,2]
[408388795,1773544232945,-5881.18337112,0.000169,2]
[408388796,1773544232955,-500.0,0.0001699,2]
[408388797,1773544232965,-500.0,0.0001699,2]
[408388798,1773544232974,-513.70449455,0.0001699,2]
[408388799,1773544232983,-151.0,0.0001699,2]
[408388800,1773544232992,-151.0,0.0001699,2]
[408388801,1773544233002,-151.0,0.0001699,2]
[408388802,1773544233011,-151.0,0.0001699,2]
[408388803,1773544233020,-151.0,0.0001699,2]
[408388804,1773544233030,-151.0,0.0001699,2]
[408388805,1773544233039,-151.0,0.0001699,2]
[408388806,1773544233049,-151.0,0.0001699,2]
[408388807,1773544233059,-151.0,0.0001699,2]
[408388808,1773544233068,-151.0,0.0001699,2]
[408388809,1773544233078,-151.0,0.0001699,2]
[408388810,1773544233088,-481.57313378,0.00016999,2]
[408388811,1773544233097,-347.48204011,0.00016999,2]
[408388812,1773544233107,-500.0,0.00017,2]
[408388813,1773544233116,-300.0,0.00017,2]
[408388814,1773544233126,-41721.88105901,0.00017,2]
[408388815,1773544233499,-71628.26201989,0.00017,2]
[408388816,1773544233510,-7288.81184457,0.00017,2]
[408388817,1773544233524,-2349.78977376,0.00017,2]
[408388818,1773544233535,-928.83206182,0.00017,2]
[408388819,1773544233546,-10078.44371312,0.00017,2]
[408388821,1773544238233,-500.0,0.00016199,2]
[408388822,1773544238244,-500.0,0.00016199,2]
[408388823,1773544238254,-500.0,0.00016199,2]
[408388824,1773544238263,-500.0,0.00016199,2]
[408388825,1773544238272,-500.0,0.00016199,2]
[408388826,1773544238281,-602.90948464,0.00016199,2]
[408388827,1773544238291,-500.0,0.00016199,2]
[408388828,1773544238300,-500.0,0.00016199,2]
[408388829,1773544238310,-500.0,0.00016199,2]
[408388830,1773544238321,-500.0,0.00016199,2]
[408388831,1773544238330,-500.0,0.00016199,2]
[408388832,1773544238339,-500.0,0.00016199,2]
[408388833,1773544238349,-500.0,0.00016199,2]
[408388834,1773544238358,-28054.4280516,0.00017,2]
[408388835,1773544238370,-1550.52717028,0.00017,2]
[408388836,1773544238381,-4159.4,0.00017,2]
[408388837,1773544238393,-435.68171857,0.00017,2]
[408388838,1773544238404,-26272.12959415,0.00017,2]
[408388843,1773544240922,-328244.9211965,0.00017,2]
[408388848,1773544243302,-503.0,0.00017,2]
[408388850,1773544243464,-466.789003,0.00017,2]
[408388851,1773544243772,-51903.88110032,0.00017,2]
[408388852,1773544243783,-713.11239565,0.00017,2]
[408388856,1773544246583,-14894.71531061,0.00017,2]
[408388857,1773544246594,-64711.09465049,0.00017,2]
[408388858,1773544246603,-152.29154327,0.00017,2]
[408388859,1773544246612,-509.0,0.00017,2]
[408388860,1773544246621,-77638.0808151,0.000171,2]
[408388861,1773544246631,-174.0,0.00017196,2]
[408388863,1773544246639,-587.0,0.00017196,2]
[408388864,1773544246648,-5881.18337106,0.00017233,2]
[408388865,1773544246657,-2351.0,0.00017347,2]
[408388866,1773544246667,-5881.18337106,0.00017567,2]
[408388867,1773544246675,-157.01,0.00017602,2]
[408388868,1773544246685,-990.73,0.00017695,2]
[408388869,1773544246694,-250.0,0.00017783,2]
[408388870,1773544246704,-1268.58,0.0001789,2]
[408388871,1773544246713,-5881.18337106,0.000179,2]
[408388872,1773544246722,-1600.0,0.00017942,2]
[408388873,1773544246732,-157.81,0.00018006,2]
[408388874,1773544246740,-154.51093187,0.00018057,2]
[408388875,1773544246750,-5881.18337106,0.00018233,2]
[408388876,1773544246759,-168.13,0.000184,7]
[408388877,1773544246768,-5881.18337106,0.00018567,2]
[408388878,1773544246777,-500.0,0.00018575,2]
[408388879,1773544246787,-1100.0,0.000186,6]
[408388880,1773544246796,-1700.0,0.000187,6]
[408388882,1773544246805,-500.0,0.00018759,2]
[408388883,1773544246815,-359.35647571,0.00018759,2]
[408388884,1773544246827,-5000.0,0.00018759,2]
[408388885,1773544246836,-10000.0,0.00018759,2]
[408388886,1773544246845,-388.36419264,0.00018759,2]
[408388887,1773544246854,-670.94264325,0.00018759,2]
[408388888,1773544246864,-6589.1151924,0.00018759,2]
[408388889,1773544246874,-1000.0,0.0001876,2]
[408388890,1773544246883,-1268.58,0.00018784,2]
[408388891,1773544246892,-2300.0,0.000188,6]
[408388892,1773544246902,-823.0,0.00018833,2]
[408388893,1773544246911,-333139.13957321,0.00018859,2]
[408388894,1773544246922,-11924.23686223,0.00018859,2]
[408388895,1773544279472,-300.0,0.00018521,2]
[408388896,1773544279502,-38.0,0.00018521,2]
[408388901,1773545067286,162.49,0.0002,120]
[408388902,1773545087551,174.47307727,2.2e-06,2]
[408388903,1773545089111,174.47307727,1.22e-05,2]
[408388904,1773545090400,174.47307727,2.22e-05,2]
[408388905,1773545236132,-250.0,0.00014651,2]
[408388906,1773545236153,-600.0,0.00014688,2]
[408388907,1773545236173,-200.04497557,0.00014704,2]
[408388915,1773545431456,-400.0,0.000146,5]
[408388916,1773545431466,-70.9133467,0.0001463,2]
[408388917,1773545431479,-1108.9983673,0.0001463,2]
[408388918,1773545431489,-150.0,0.00014651,2]
[408388919,1773545431498,-60.98366418,0.000147,2]
[408388920,1773545431512,-933.29910589,0.000147,2]
[408388921,1773545431523,-1921.97847326,0.000147,2]
[408388922,1773545431534,-303.72702952,0.000147,2]
[408388923,1773545431544,-96.27297048,0.000147,5]
[408388924,1773545431564,-703.72702952,0.000147,5]
[408388926,1773545431574,-166.00225197,0.00014704,2]
[408388964,1773545437456,-1120.43290127,0.00013942,2]
[408388965,1773545437605,-467.75700055,0.00013942,2]
[408388966,1773545437618,-1876.87913459,0.00013942,2]
[408388967,1773545437631,-2152.95910661,0.00013942,2]
[408388968,1773545437643,-1263.16297588,0.00013942,2]
[408388969,1773545437654,-14627.0888811,0.00013942,2]
[408388970,1773545437663,-182.650276,0.00014049,7]
[408388971,1773545437673,-693.307398,0.000147,2]
[408388972,1773545437683,-105.99774803,0.00014704,2]
[408388973,1773545437694,-49.95502443,0.00014704,2]
[408388974,1773545437704,-150.0,0.00014706,2]
[408388975,1773545437713,-202.6972556,0.00014715,2]
[408388976,1773545437724,-397.3027444,0.00014715,2]
[408388977,1773545437733,-255.7672556,0.00014755,2]
[408388986,1773545439674,-567.28004825,0.00014755,2]
[408388987,1773545439687,-3345.58,0.00014755,2]
[408388988,1773545439698,-600.0,0.00014757,2]
[408388989,1773545439709,-562.0008161,0.00014757,2]
[408388990,1773545439719,-150.0,0.00014761,2]
[408388991,1773545439729,-204.16158277,0.00014789,2]
[408388992,1773545439739,-300.0,0.00014798,2]
[408388993,1773545439748,-1200.0,0.00014798,2]
[408388994,1773545439757,-8693.38296011,0.00014799,2]
[408388995,1773545439769,-2134122.75423989,0.00014799,2]
[408388996,1773545439779,-1000.0,0.000148,2]
[408388997,1773545439788,-6758.0436,0.000148,2]
[408388998,1773545439798,-2352.47334846,0.000148,2]
[408388999,1773545439807,-2500.0,0.000148,2]
[408389000,1773545439818,-11997.92931787,0.000148,2]
[408389001,1773545439827,-1357.853,0.000148,2]
[408389002,1773545439836,-66854.5744,0.000148,2]
[408389003,1773545439846,-1200.0,0.000148,5]
[408389004,1773545439855,-11345.36,0.00014801,2]
[408389005,1773545439865,-150.0,0.00014815,2]
[408389006,1773545439878,-203.95339783,0.0001487,2]
[408389007,1773545439887,-405.00050788,0.00014873,2]
[408389008,1773545439897,-500.0,0.00014873,2]
[408389009,1773545439907,-358.11667338,0.0001489,2]
[408389010,1773545439916,-151.0,0.00014891,2]
[408389011,1773545439927,-500.0,0.00014899,2]
[408389012,1773545439936,-500.0,0.00014899,2]
[408389013,1773545439947,-500.0,0.00014899,2]
[408389014,1773545439956,-500.0,0.00014899,2]
[408389015,1773545439966,-500.0,0.00014899,2]
[408389016,1773545439975,-500.0,0.00014899,2]
[408389017,1773545439984,-500.0,0.00014899,2]
[408389018,1773545439994,-500.0,0.00014899,2]
[408389019,1773545440003,-645.26239588,0.00014899,2]
[408389020,1773545440012,-500.0,0.00014899,2]
[408389021,1773545440021,-500.0,0.00014899,2]
[408389022,1773545440031,-500.0,0.00014899,2]
[408389023,1773545440040,-500.0,0.00014899,2]
[408389024,1773545440049,-500.0,0.00014899,2]
[408389025,1773545440058,-500.0,0.00014899,2]
[408389026,1773545440068,-500.0,0.00014899,2]
[408389027,1773545440077,-500.0,0.00014899,2]
[408389028,1773545440087,-500.0,0.00014899,2]
[408389029,1773545440096,-500.0,0.00014899,2]
[408389030,1773545440105,-500.0,0.00014899,2]
[408389031,1773545440115,-500.0,0.00014899,2]
[408389032,1773545440124,-500.0,0.00014899,2]
[408389033,1773545440133,-500.0,0.00014899,2]
[408389034,1773545440143,-500.0,0.00014899,2]
[408389035,1773545440152,-500.0,0.00014899,2]
[408389036,1773545440162,-500.0,0.00014899,2]
[408389037,1773545440171,-510.21838234,0.00014899,2]
[408389038,1773545440180,-500.0,0.00014899,2]
[408389039,1773545440189,-500.0,0.00014899,2]
[408389040,1773545440199,-500.0,0.00014899,2]
[408389041,1773545440208,-500.0,0.00014899,2]
[408389042,1773545440217,-431.62839411,0.00014899,2]
[408389043,1773545440226,-337.10119365,0.00014899,2]
[408389044,1773545440235,-243.23742808,0.00014899,2]
[408389045,1773545440244,-450234.6982,0.000149,2]
[408389046,1773545440254,-1700.0,0.000149,5]
[408389047,1773545440263,-250.0,0.00015,2]
[408389048,1773545440273,-1852.42,0.00015108,2]
[408389049,1773545440282,-163.61458647,0.00015293,2]
[408389050,1773545440291,-118666.02159522,0.00015366,2]
[408389051,1773545440301,-482.7910397,0.00015373,2]
[408389052,1773545440310,-500.77956524,0.00015373,2]
[408389053,1773545440320,-2000.0,0.00015393,2]
[408389054,1773545440330,-1102.78482422,0.00015605,2]
[408389055,1773545440339,-2000.0,0.0001589,2]
[408389056,1773545440348,-5513.62,0.00015907,2]
[408389057,1773545440357,-8179.97,0.00015955,2]
[408389058,1773545440366,-398.86179408,0.00016075,2]
[408389059,1773545440375,-250.0,0.00016075,2]
[408389060,1773545440384,-250.0,0.00016093,2]
[408389061,1773545440394,-600.0,0.00016174,2]
[408389062,1773545440403,-420.0,0.00016199,2]
[408389063,1773545440412,-1680.0,0.00016278,2]
[408389064,1773545440421,-648.63882111,0.00016278,2]
[408389065,1773545440431,-275.72172148,0.00016546,2]
[408389066,1773545440440,-1244.99303704,0.00016604,2]
[408389067,1773545440450,-693.30739798,0.0001672,2]
[408389068,1773545440459,-699.82772108,0.00016845,2]
[408389069,1773545440469,-160.0,0.00016886,2]
[408389070,1773545440478,-500.0,0.00016899,2]
[408389071,1773545440487,-500.0,0.00016899,2]
[408389072,1773545440496,-500.0,0.00016899,2]
[408389073,1773545440506,-166.66,0.00016994,2]
[408389074,1773545440515,-300.0,0.00017,2]
[408389075,1773545440689,-509.0,0.00017,2]
[408389076,1773545440699,-11997.92931786,0.00017033,2]
[408389077,1773545440710,-2352.47334842,0.00017144,2]
[408389078,1773545440721,-171.303049,0.00017172,2]
[408389079,1773545440731,-889.15,0.00017229,2]
[408389080,1773545440742,-2000.0,0.00017317,2]
[408389081,1773545440751,-166.66,0.00017352,2]
[408389082,1773545440761,-500.0,0.00017411,2]
[408389083,1773545440770,-1500.0,0.00017475,2]
[408389084,1773545440780,-500.0,0.00017475,3]
[408389085,1773545440789,-5000.0,0.00017626,2]
[408389086,1773545440798,-166.66,0.0001771,2]
[408389087,1773545440807,-500.0,0.00017725,2]
[408389088,1773545440815,-133072.0196826,0.00017726,2]
[408389089,1773545440824,-7251.4952999,0.00017726,2]
[408389090,1773545440833,-250586.8032742,0.00017726,2]
[408389091,1773545440842,-5000.0,0.00017726,2]
[408389092,1773545440851,-3781.835403,0.00017726,2]
[408389093,1773545440860,-587.0,0.00017732,2]
[408389094,1773545440875,-501.09060044,0.00017773,2]
[408389095,1773545440884,-502.14581261,0.00017773,2]
[408389096,1773545440893,-324.90506923,0.00017773,2]
[408389097,1773545440902,-2463.88759061,0.00017844,2]
[408389098,1773545440915,-300.0,0.000179,6]
[408389099,1773545440925,-2351.0,0.00017905,2]
[408389100,1773545440935,-166.66,0.00018068,2]
[408389101,1773545440946,-500.0,0.00018164,2]
[408389102,1773545440955,-166.66,0.00018425,2]
[408389103,1773545440965,-4000.0,0.00018481,2]
[408389104,1773545440975,-3266.66061938,0.00018521,2]
[408389105,1773545440983,-11157.36,0.00018522,2]
[408389106,1773545440993,-3419.7,0.00018533,2]
[408389107,1773545441006,-2218.53,0.00018533,2]
[408389108,1773545441016,-999.99,0.00018533,2]
[408389109,1773545441027,-2376.86,0.00018533,2]
[408389110,1773545441036,-500.0,0.000186,2]
[408389111,1773545441046,-500.0,0.000186,2]
[408389112,1773545441056,-500.0,0.000186,2]
[408389113,1773545441065,-500.0,0.000186,2]
[408389114,1773545441075,-500.0,0.000186,2]
[408389115,1773545441085,-557.98545235,0.000186,2]
[408389116,1773545441094,-693.30739798,0.0001874,2]
[408389117,1773545441103,-354.09367325,0.00018749,2]
[408389118,1773545441112,-166.66,0.00018783,2]
[408389119,1773545441122,-500.0,0.00018858,2]
[408389120,1773545441131,-500.0,0.00018858,2]
[408389121,1773545441140,-500.0,0.00018858,2]
[408389122,1773545441150,-617.17400735,0.00018858,2]
[408389123,1773545441159,-1318.31522047,0.00018859,2]
[408389124,1773545441168,-200.0,0.00018859,2]
[408389125,1773545441177,-200.0,0.00018859,2]
[408389126,1773545441187,-500.0,0.00018859,2]
[408389127,1773545441197,-500.0,0.00018877,2]
[408389128,1773545441207,-286.21682114,0.00018877,2]
[408389129,1773545441217,-600.0,0.000189,6]
[408389130,1773545441227,-4000.0,0.00018943,2]